bitfinex/quotes_ETHUSD_20250929
["timestamp","ask_amount","ask_price","bid_price","bid_amount"]
[1759115879245,0.001,4114.0,4113.9,21.71958344]
[1759115879458,0.001,4114.5,4114.4,2.43048804]
[1759115879657,0.001,4114.5,4114.4,5.47548804]
[1759115879862,0.001,4114.5,4114.4,6.30548804]
[1759115880261,0.001,4114.5,4114.4,6.40293837]
[1759115880460,0.001,4114.5,4114.4,2.88383837]
[1759115880664,0.001,4114.5,4114.4,5.69373837]
[1759115881064,0.001,4114.5,4114.4,6.28213837]
[1759115881244,0.001,4114.5,4114.4,7.07413837]
[1759115881872,0.001,4114.5,4114.4,21.57413837]
[1759115882875,0.001,4114.5,4114.4,18.52913837]
[1759115883082,0.001,4114.5,4114.4,21.57413837]
[1759115886681,0.001,4114.9,4114.8,3.22225177]
[1759115886682,1e-08,4114.9,4114.8,3.22225177]
[1759115886887,1e-08,4114.9,4114.8,9.26725177]
[1759115887191,1e-08,4114.9,4114.8,9.97645177]
[1759115887355,1e-08,4114.9,4114.8,24.47645177]
[1759115889278,1e-08,4114.9,4114.8,21.43145177]
[1759115889490,1e-08,4114.9,4114.8,24.47545177]
[1759115890998,1e-08,4114.9,4114.8,24.59625177]
[1759115891498,1e-08,4114.9,4114.8,18.55225177]
[1759115891679,1e-08,4114.9,4114.8,20.88705177]
[1759115892010,1e-08,4114.9,4114.8,21.57595177]
[1759115899908,1e-08,4114.9,4114.8,24.57595177]
[1759115901790,1e-08,4114.9,4114.8,21.53195177]
[1759115901996,1e-08,4114.9,4114.8,24.57595177]
[1759115903116,1e-08,4115.6,4115.5,3.22183841]
[1759115903282,1e-08,4115.6,4115.5,6.38563841]
[1759115903488,1e-08,4115.6,4115.5,7.06743841]
[1759115903836,1e-08,4115.6,4115.5,7.16484674]
[1759115904005,1e-08,4115.6,4115.5,21.66484674]
[1759115904625,1e-08,4115.6,4115.5,17.94004674]
[1759115904939,0.20570001,4115.6,4115.5,20.19104674]
[1759115905234,0.20570001,4115.6,4115.5,17.14804674]
[1759115905406,0.20570001,4115.6,4115.5,20.09363841]
[1759115907338,0.20570001,4115.6,4115.5,3.1638]
[1759115907506,0.20570001,4115.6,4115.5,5.59363841]
[1759115908337,0.07570001,4115.6,4115.5,5.59363841]
[1759115909228,0.20570001,4115.6,4114.8,0.002]
[1759115909428,5.57338103,4115.4,4114.8,0.002]
[1759115909757,5.57338103,4115.4,4114.9,2.43017975]
[1759115909918,5.57338103,4115.4,4114.8,0.002]
[1759115909919,0.2057,4115.3,4115.0,5.47313126]
[1759115910106,0.2057,4115.2,4115.1,3.043]
[1759115910311,5.77908103,4115.2,4114.8,0.002]
[1759115910621,0.5779081,4115.1,4114.8,3.046]
[1759115910822,0.2057,4115.0,4114.8,3.046]
[1759115911021,0.2057,4114.9,4114.8,3.046]
[1759115912336,0.2057,4114.9,4114.8,5.47625177]
[1759115912547,0.2057,4114.9,4114.8,3.046]
[1759115912709,6.10073099,4114.9,4114.8,0.002]
[1759115914528,3.67053828,4114.9,4114.8,0.002]
[1759115914842,6.10073099,4114.9,4114.8,0.002]
[1759115915045,3.67053828,4114.9,4114.8,0.002]
[1759115915510,0.0757,4115.2,4114.8,0.002]
[1759115915715,0.0757,4115.2,4114.8,2.43224177]
[1759115916123,0.5781081,4115.5,4114.8,0.002]
[1759115916416,0.0757,4115.1,4114.8,0.002]
[1759115917015,0.0757,4115.1,4114.8,2.43224674]
[1759115917448,0.0757,4115.0,4114.8,0.002]
[1759115917619,0.2057,4115.0,4114.8,0.002]
[1759115917818,0.0757,4114.9,4114.8,0.002]
[1759115918449,0.0757,4115.1,4114.8,0.002]
[1759115919162,0.0757,4115.0,4114.8,3.046]
[1759115919855,0.5781081,4115.5,4114.8,0.002]
[1759115919856,0.2057,4114.9,4114.8,0.002]
[1759115920055,5.42996288,4115.3,4114.8,0.002]
[1759115920435,0.0757,4114.9,4114.8,0.002]
[1759115923075,0.13,4115.1,4114.8,0.002]
[1759115923243,0.0757,4115.0,4114.8,0.002]
[1759115923563,0.33926653,4115.0,4114.8,0.002]
[1759115924657,0.26356653,4115.0,4114.8,0.002]
[1759115924860,3.03518929,4115.4,4114.8,0.002]
[1759115924861,0.2057,4114.9,4114.8,0.002]
[1759115926328,0.0757,4114.9,4114.8,0.002]
[1759115926530,3.2057,4114.9,4114.8,0.002]
[1759115926835,0.2057,4114.9,4114.8,0.002]
[1759115927160,0.76928408,4114.9,4114.8,0.002]
[1759115927535,0.2057,4114.9,4114.8,0.002]
[1759115928563,0.0757,4114.9,4114.8,0.002]
[1759115932349,0.1208,4115.0,4114.8,0.002]
[1759115932556,0.0757,4114.9,4114.8,0.002]
[1759115932744,5.50589271,4114.9,4114.8,0.002]
[1759115932939,6.75457041,4114.9,4114.8,0.002]
[1759115933164,9.79957041,4114.9,4114.8,0.002]
[1759115938884,9.66957041,4114.9,4114.8,0.002]
[1759115939291,7.1636777,4114.9,4114.8,0.002]
[1759115940269,4.2394777,4114.9,4114.8,0.002]
[1759115941459,6.18302801,4115.4,4114.8,3.13425177]
[1759115941665,3.046,4115.3,4114.8,0.704]
[1759115941898,3.0,4115.3,4114.8,0.002]
[1759115942094,2.42985319,4115.5,4114.9,0.702]
[1759115942387,3.0,4115.3,4114.8,0.002]
[1759115942594,1.16237434,4115.2,4114.8,0.002]
[1759115943012,1.16237434,4115.2,4114.3,2.43249272]
[1759115943013,5.57774345,4115.0,4114.3,1e-08]
[1759115943162,2.43101981,4113.5,4112.9,0.002]
[1759115943356,17.69366235,4113.5,4112.9,0.002]
[1759115943562,17.715204,4113.5,4112.9,0.002]
[1759115943792,19.360904,4113.5,4112.9,0.002]
[1759115943989,19.74229359,4113.5,4112.9,0.002]
[1759115944201,21.95961657,4113.5,4112.9,0.002]
[1759115946169,22.44942333,4113.5,4112.9,0.002]
[1759115946380,16.87167988,4113.5,4112.9,0.002]
[1759115947384,11.42153914,4113.5,4112.9,0.002]
[1759115947595,14.49853914,4113.5,4112.9,0.002]
[1759115948094,14.00873238,4113.5,4112.9,0.002]
[1759115948901,10.93173238,4113.5,4112.9,0.002]
[1759115949117,14.00973238,4113.5,4112.9,0.002]
[1759115949290,12.18834279,4113.5,4112.9,0.002]
[1759115950221,12.67917241,4113.5,4112.9,0.002]
[1759115950705,11.21617241,4113.5,4112.9,0.2516]
[1759115952284,5.7081526,4113.5,4112.9,0.002]
[1759115952484,8.99784943,4113.5,4113.2,0.2442]
[1759115953486,3.0,4113.5,4113.4,0.6887]
[1759115953904,6.076,4113.5,4113.4,0.6887]
[1759115955686,3.0,4113.5,4113.4,0.6887]
[1759115955882,6.1958,4113.5,4113.4,0.6887]
[1759115957519,3.1208,4113.5,4113.4,0.6887]
[1759115958120,6.1948,4113.5,4113.4,3.11977891]
[1759115958288,6.074,4113.5,4113.4,3.11977891]
[1759115959118,3.0,4113.5,4113.4,3.11977891]
[1759115962225,3.0,4113.5,4113.4,0.6887]
[1759115962430,3.0,4113.5,4113.4,3.11977891]
[1759115964408,0.001,4113.8,4113.7,2.43090162]
[1759115964812,0.001,4114.3,4114.2,2.43060619]
[1759115965342,0.001,4114.3,4114.2,3.11730619]
[1759115969222,0.001,4114.3,4114.2,17.61730619]
[1759115971835,0.001,4114.3,4114.2,14.5]
[1759115972036,0.001,4114.3,4114.2,16.93060619]
[1759115972236,0.001,4114.3,4114.2,17.61730619]
[1759115972449,0.001,4114.3,4114.2,3.11730619]
[1759115973672,0.001,4114.3,4114.1,5.50666193]
[1759115973957,0.001,4114.3,4114.0,14.5]
[1759115974145,4.82077923,4114.2,4114.0,16.93071414]
[1759115974349,0.001,4114.3,4114.2,2.43060619]
[1759115974854,0.001,4114.3,4114.2,3.11730619]
[1759115988742,0.001,4114.3,4114.2,2.43060619]
[1759115989247,0.001,4114.3,4114.2,2.68000619]
[1759115989454,0.001,4114.3,4114.2,3.13020619]
[1759115989875,0.001,4114.3,4114.2,2.43060619]
[1759115990212,0.001,4114.3,4114.2,3.13020619]
[1759115990352,0.001,4114.3,4114.2,2.43060619]
[1759115990874,0.001,4114.3,4114.2,3.13020619]
[1759115992778,0.001,4114.3,4114.2,2.68000619]
[1759115992945,0.001,4114.3,4114.2,2.43060619]
[1759115993688,0.131,4114.3,4114.2,3.067]
[1759115993867,0.57287792,4114.3,4114.2,5.49760619]
[1759115994087,0.49617792,4114.3,4114.2,3.067]
[1759115994291,0.49617792,4114.3,4114.0,3.067]
[1759115994486,0.49617792,4114.3,4114.0,5.4977204]
[1759115995085,0.49617792,4114.3,4114.1,2.43065506]
[1759115995492,0.49617792,4114.3,4114.2,2.43060619]
[1759115995797,0.001,4114.3,4114.2,2.43060619]
[1759115996172,0.001,4114.3,4114.2,2.68000619]
[1759115996500,0.001,4114.3,4114.2,2.43060619]
[1759115997011,0.001,4114.3,4114.2,2.68000619]
[1759115997314,0.001,4114.3,4114.2,2.43060619]
[1759116000226,0.001,4114.3,4114.2,2.68000619]
[1759116000378,0.001,4114.3,4114.2,2.43060619]
[1759116000774,0.001,4114.3,4114.2,2.68000619]
[1759116000977,0.001,4114.3,4114.2,3.13020619]
[1759116001384,0.001,4114.3,4114.2,6.19520619]
[1759116004209,0.001,4114.3,4114.2,20.81600619]
[1759116006031,0.001,4114.3,4114.2,21.60800619]
[1759116006230,0.001,4114.3,4114.2,21.48720619]
[1759116007342,0.001,4114.3,4114.2,6.98720619]
[1759116007851,0.001,4114.3,4114.2,21.48720619]
[1759116016152,0.001,4114.3,4114.2,21.60800619]
[1759116024004,0.001,4114.3,4114.2,18.54300619]
[1759116024193,0.001,4114.3,4114.2,24.60200619]
[1759116024896,1e-08,4114.8,4114.7,6.22231083]
[1759116025194,1e-08,4114.8,4114.7,9.28031083]
[1759116025496,1e-08,4114.8,4114.7,24.58213363]
[1759116026064,0.001,4116.1,4114.7,24.58213363]
[1759116026065,0.001,4116.1,4116.0,3.22154324]
[1759116026269,0.001,4116.1,4116.0,6.28154324]
[1759116026481,0.001,4116.1,4116.0,3.22154324]
[1759116026778,0.001,4116.1,4116.0,6.28254324]
[1759116029977,0.001,4116.1,4116.0,6.37995299]
[1759116033077,0.001,4116.1,4116.0,3.31895299]
[1759116033279,0.2077,4116.1,4116.0,2.52695299]
[1759116033586,0.2077,4116.1,4116.0,2.42954324]
[1759116033792,0.2077,4116.1,4116.0,5.48954324]
[1759116034183,0.2077,4116.1,4116.0,19.98954324]
[1759116034500,0.2077,4116.1,4116.0,19.98854324]
[1759116036575,0.2077,4116.1,4116.0,19.98754324]
[1759116037793,0.001,4116.1,4116.0,19.98754324]
[1759116041105,0.001,4116.1,4116.0,20.10834324]
[1759116041819,0.001,4116.1,4116.0,20.78904324]
[1759116042192,0.001,4116.1,4116.0,20.88645347]
[1759116044213,0.001,4116.1,4116.0,6.38645347]
[1759116044689,0.001,4116.1,4116.0,20.88645347]
[1759116046126,0.001,4116.1,4116.0,17.14775347]
[1759116046490,0.001,4116.1,4116.0,20.20475347]
[1759116047222,0.001,4116.1,4116.0,20.88545347]
[1759116047426,0.001,4116.1,4116.0,17.82845347]
[1759116047618,0.001,4116.1,4116.0,21.67745347]
[1759116050362,0.001,4116.1,4116.0,17.14775347]
[1759116050543,0.001,4116.1,4116.0,20.20375347]
[1759116053032,0.2077,4116.1,4116.0,20.10634324]
[1759116053537,0.001,4116.1,4116.0,20.10634324]
[1759116057054,0.001,4116.1,4116.0,5.60634324]
[1759116057446,0.001,4116.1,4116.0,6.28704324]
[1759116057759,0.001,4116.1,4116.0,20.88445584]
[1759116067492,0.001,4116.1,4116.0,23.20375584]
[1759116068470,0.001,4116.1,4116.0,20.14775584]
[1759116068675,0.001,4116.1,4116.0,23.20075584]
[1759116068901,0.001,4116.1,4116.0,20.20075584]
[1759116069235,0.001,4116.1,4116.0,20.07995584]
[1759116069389,0.001,4116.1,4116.0,20.76775584]
[1759116070305,0.001,4116.1,4116.0,21.55975584]
[1759116073623,0.001,4116.1,4116.0,18.50675584]
[1759116073828,0.001,4116.1,4116.0,21.55875584]
[1759116077214,0.001,4116.1,4116.0,20.07895584]
[1759116078716,0.2077,4116.1,4116.0,19.98154324]
[1759116079219,0.2077,4116.1,4116.0,20.10234324]
[1759116079715,0.0777,4116.1,4116.0,20.10234324]
[1759116079921,0.001,4116.1,4116.0,20.10234324]
[1759116081333,0.001,4116.1,4116.0,5.60234324]
[1759116081532,0.001,4116.1,4116.0,2.55034324]
[1759116081913,0.001,4116.1,4116.0,17.05034324]
[1759116084417,0.0777,4116.1,4116.0,17.05034324]
[1759116084630,0.001,4116.1,4116.0,17.05034324]
[1759116086943,0.2077,4116.1,4116.0,14.6208]
[1759116087148,0.2077,4116.1,4115.8,0.002]
[1759116087149,0.71014501,4116.1,4115.8,0.002]
[1759116087318,4.81675007,4116.0,4115.8,0.002]
[1759116087518,3.0,4115.9,4115.8,0.002]
[1759116087826,3.2067,4115.9,4115.8,0.002]
[1759116088030,4.99226452,4115.9,4115.8,0.002]
[1759116089258,8.88386679,4115.9,4115.8,0.002]
[1759116089964,6.45426452,4115.9,4115.8,0.002]
[1759116090361,8.88386679,4115.9,4115.8,0.002]
[1759116090965,7.42186679,4115.9,4115.8,0.002]
[1759116093494,4.99226452,4115.9,4115.8,0.002]
[1759116093976,7.42186679,4115.9,4115.8,0.002]
[1759116094174,4.99226452,4115.9,4115.8,0.002]
[1759116095486,7.42186679,4115.9,4115.8,0.002]
[1759116095982,4.99226452,4115.9,4115.8,0.002]
[1759116097680,10.47286679,4115.9,4115.8,0.002]
[1759116097980,11.93486679,4115.9,4115.8,0.002]
[1759116102676,6.24756452,4115.9,4115.8,0.002]
[1759116102987,14.11531459,4115.9,4115.8,0.002]
[1759116104094,13.70061686,4115.9,4115.8,0.002]
[1759116104275,16.75161686,4115.9,4115.8,0.002]
[1759116105665,14.11531459,4115.9,4115.8,0.002]
[1759116106254,16.54491686,4115.9,4115.8,0.002]
[1759116106683,14.11531459,4115.9,4115.8,0.002]
[1759116107301,16.54491686,4115.9,4115.8,0.002]
[1759116110607,1.462,4115.6,4114.9,0.002]
[1759116110787,4.81675007,4115.0,4114.9,0.002]
[1759116110969,7.86775007,4115.0,4114.9,0.002]
[1759116111165,10.86775007,4115.0,4114.9,0.002]
[1759116111798,10.86775007,4115.0,4114.9,0.7039]
[1759116114171,19.57663379,4115.0,4114.9,0.002]
[1759116114374,17.0502502,4115.0,4114.9,0.002]
[1759116114578,21.99700027,4115.0,4114.9,0.002]
[1759116114971,21.86700027,4115.0,4114.9,0.002]
[1759116117514,21.79030027,4115.0,4114.9,0.002]
[1759116121943,16.9735502,4115.0,4114.9,0.002]
[1759116122120,16.9735502,4115.0,4114.9,0.7039]
[1759116123012,16.9735502,4115.0,4114.9,0.002]
[1759116126543,16.9735502,4115.0,4114.4,0.4628]
[1759116126544,2.43042897,4114.5,4114.4,0.002]
[1759116126711,3.89266527,4114.1,4114.0,0.002]
[1759116126910,14.76041534,4114.1,4114.0,0.002]
[1759116127313,14.76041534,4114.1,4114.0,0.7039]
[1759116127513,15.51308674,4114.1,4114.0,0.7039]
[1759116128952,15.63767815,4114.1,4114.0,0.7039]
[1759116130154,13.20701288,4114.1,4114.0,0.7039]
[1759116130528,10.15601288,4114.1,4114.0,0.7039]
[1759116130941,12.45434148,4114.1,4114.0,0.7039]
[1759116131157,10.99234148,4114.1,4114.0,0.7039]
[1759116132130,7.94134148,4114.1,4114.0,0.7039]
[1759116132323,10.99334148,4114.1,4114.0,0.7039]
[1759116134135,7.94134148,4114.1,4114.0,0.7039]
[1759116134334,10.99334148,4114.1,4114.0,0.7039]
[1759116135624,7.94134148,4114.1,4114.0,0.7039]
[1759116135956,10.98955007,4114.1,4114.0,0.7039]
[1759116136159,7.93755007,4114.1,4114.0,0.7039]
[1759116136327,7.86875007,4114.1,4114.0,3.25542435]
[1759116136660,10.86875007,4114.1,4114.0,3.25542435]
[1759116139976,0.1208,4114.7,4114.0,0.8247]
[1759116140271,4.93755007,4115.0,4114.1,3.12746298]
[1759116140472,6.051,4114.9,4114.2,0.6968]
[1759116140770,6.051,4114.9,4114.6,0.1208]
[1759116140973,6.051,4114.9,4114.8,2.43025177]
[1759116141151,6.051,4114.9,4114.8,3.12705177]
[1759116141679,6.051,4114.9,4114.8,0.6968]
[1759116142274,3.0,4114.9,4114.8,0.6968]
[1759116142465,6.051,4114.9,4114.8,0.6968]
[1759116144592,3.0,4114.9,4114.8,3.12705177]
[1759116144771,3.051,4114.9,4114.8,3.12705177]
[1759116146982,3.0,4115.3,4115.2,2.43001555]
[1759116147184,3.051,4115.3,4115.2,3.12679589]
[1759116147672,6.051,4115.3,4115.2,3.12679589]
[1759116148204,6.051,4115.3,4115.2,17.62679589]
[1759116149292,6.051,4115.3,4115.2,15.1968]
[1759116149453,6.051,4115.3,4115.2,17.62681555]
[1759116149781,6.051,4115.3,4115.2,14.5]
[1759116150077,6.051,4115.3,4115.2,16.93001555]
[1759116150282,6.051,4115.3,4115.2,17.62681555]
[1759116150684,6.052,4115.3,4115.2,17.62681555]
[1759116152201,6.052,4115.3,4115.2,14.5]
[1759116152504,6.052,4115.3,4114.9,2.43013442]
[1759116152505,6.734,4115.3,4114.9,2.4301687]
[1759116153003,6.6573,4115.3,4114.8,2.43024517]
[1759116153214,3.001,4115.3,4115.2,2.43001555]
[1759116153413,6.052,4115.3,4115.2,2.43001555]
[1759116154293,6.052,4115.3,4115.1,2.43005934]
[1759116154625,6.052,4115.3,4115.2,2.43001555]
[1759116158314,6.051,4115.3,4115.2,3.12681555]
[1759116158911,3.001,4115.3,4115.2,2.43001555]
[1759116159117,6.051,4115.3,4115.2,3.13701555]
[1759116160624,3.001,4115.3,4115.2,3.13701555]
[1759116160922,0.001,4115.3,4115.2,17.63701555]
[1759116161125,3.051,4115.3,4115.2,17.63701555]
[1759116166644,0.001,4115.3,4115.2,17.63701555]
[1759116167631,0.001,4115.3,4115.2,2.43001555]
[1759116168041,0.001,4115.3,4115.2,16.93001555]
[1759116168427,0.001,4115.3,4115.2,17.63701555]
[1759116172619,0.001,4115.3,4115.1,0.1208]
[1759116172947,0.3818,4115.2,4114.4,3.2979]
[1759116173135,3.05,4115.1,4114.7,2.55110988]
[1759116173454,3.05,4115.1,4114.9,2.43017935]
[1759116173752,3.05,4115.1,4115.0,2.43013365]
[1759116176558,3.05,4115.1,4114.7,0.8278]
[1759116176730,0.33561,4115.0,4114.8,2.43022541]
[1759116177071,0.33561,4115.0,4114.7,2.55106633]
[1759116177566,0.33561,4115.0,4114.8,2.43024444]
[1759116177790,0.2067,4114.9,4114.4,2.43048804]
[1759116178065,3.05,4114.8,4114.4,2.43048804]
[1759116178435,3.05,4114.8,4114.5,14.5]
[1759116178952,3.05,4114.8,4114.6,2.4303699]
[1759116179538,5.78298539,4114.7,4114.3,0.1228]
[1759116179734,4.11091549,4114.6,4114.3,0.002]
[1759116179958,3.0,4114.4,4114.3,0.002]
[1759116180339,3.0767,4114.4,4114.3,0.002]
[1759116180783,3.2067,4114.4,4114.3,0.002]
[1759116180970,4.63521009,4114.4,4114.3,0.002]
[1759116181348,7.06569813,4114.4,4114.3,0.002]
[1759116181548,4.42851009,4114.4,4114.3,0.002]
[1759116181870,1.42851009,4114.4,4114.3,0.002]
[1759116182078,3.05,4114.4,4114.3,0.709]
[1759116182280,3.0,4115.2,4114.3,0.8298]
[1759116182281,0.1208,4115.2,4114.3,0.8298]
[1759116182583,0.1208,4114.9,4114.4,2.43047966]
[1759116182768,3.0,4114.7,4114.3,0.002]
[1759116182972,1.28342854,4114.6,4114.3,2.43254433]
[1759116183171,6.05,4114.5,4114.4,2.43047955]
[1759116184081,0.38117991,4115.4,4114.4,0.707]
[1759116184402,0.1208,4115.0,4114.9,2.43019271]
[1759116184972,0.38117991,4115.4,4114.9,2.43019271]
[1759116185178,3.0,4115.1,4115.0,0.2479]
[1759116185490,3.0,4115.1,4115.0,2.67803365]
[1759116185666,3.0,4115.1,4115.0,3.13713365]
[1759116186484,0.1218,4115.3,4115.0,3.13709759]
[1759116186688,0.001,4115.3,4115.2,2.43001555]
[1759116186891,6.051,4115.3,4115.2,2.43001555]
[1759116187070,6.051,4115.3,4115.2,3.13701555]
[1759116187959,0.001,4115.3,4115.2,3.13701555]
[1759116188158,1.977,4115.3,4115.2,3.13701555]
[1759116188390,0.001,4115.3,4115.2,3.13701555]
[1759116190693,0.001,4115.3,4115.2,17.63701555]
[1759116198095,0.001,4115.3,4115.2,17.05081555]
[1759116198597,0.001,4115.3,4115.2,14.6208]
[1759116198777,0.0777,4115.3,4115.2,14.5]
[1759116198972,0.001,4115.3,4115.2,16.93001555]
[1759116199572,0.001,4115.3,4115.2,2.43001555]
[1759116199907,0.001,4115.3,4115.2,3.24081555]
[1759116200863,0.001,4115.3,4115.2,2.55081555]
[1759116201673,0.001,4115.3,4115.2,3.24081555]
[1759116202079,0.001,4115.3,4115.2,2.55081555]
[1759116203499,0.001,4115.3,4115.2,3.24081555]
[1759116203670,0.001,4115.3,4115.2,17.74081555]
[1759116206813,0.001,4115.3,4115.2,3.24081555]
[1759116207215,0.001,4115.3,4115.2,17.74081555]
[1759116208223,0.001,4115.3,4115.2,17.50901555]
[1759116208384,0.001,4115.3,4115.2,17.74081555]
[1759116208589,0.001,4115.3,4115.2,18.47159513]
[1759116210587,0.001,4115.3,4115.2,17.74081555]
[1759116210805,0.001,4115.3,4115.2,17.83825283]
[1759116215919,0.001,4115.3,4115.2,17.14825283]
[1759116216224,0.001,4115.3,4115.2,17.60645283]
[1759116216425,0.001,4115.3,4115.2,17.83825283]
[1759116218520,0.001,4115.3,4115.2,17.05081555]
[1759116222244,0.001,4115.3,4115.2,2.55081555]
[1759116222616,0.001,4115.3,4115.2,17.05081555]
[1759116223354,0.001,4115.3,4115.2,17.74951555]
[1759116224639,0.001,4115.3,4115.2,20.79851555]
[1759116229726,0.001,4115.3,4115.2,20.89595164]
[1759116231456,0.001,4115.3,4115.2,20.77515164]
[1759116231755,0.001,4115.3,4115.2,20.89595164]
[1759116231957,0.001,4115.3,4115.2,21.68795164]
[1759116240148,0.001,4115.3,4115.2,24.68795164]
[1759116240965,0.001,4115.9,4115.5,0.792]
[1759116241152,0.001,4115.9,4115.8,2.4296613]
[1759116241459,0.001,4115.9,4115.8,5.50295791]
[1759116241654,0.001,4115.9,4115.8,6.1773613]
[1759116241856,0.001,4115.9,4115.8,20.6773613]
[1759116245482,0.001,4115.9,4115.8,21.4693613]
[1759116248788,1e-08,4116.2,4116.1,3.22148422]
[1759116249085,1e-08,4116.2,4116.1,6.29377906]
[1759116249287,1e-08,4116.2,4116.1,6.26948422]
[1759116249491,1e-08,4116.2,4116.1,7.05828544]
[1759116251197,1e-08,4116.2,4116.1,7.17908544]
[1759116255573,1e-08,4116.2,4116.1,6.48768544]
[1759116256793,1e-08,4116.2,4116.1,5.69568544]
[1759116259116,0.20670001,4116.2,4116.1,2.64768544]
[1759116259315,0.20670001,4116.2,4116.1,5.59728422]
[1759116260812,1e-08,4116.2,4116.1,5.59728422]
[1759116261186,1e-08,4116.2,4116.1,3.3714568]
[1759116261388,1e-08,4116.2,4116.1,5.80094102]
[1759116262513,1e-08,4116.2,4116.1,20.30094102]
[1759116267624,1e-08,4116.2,4116.1,20.97984102]
[1759116268212,1e-08,4116.2,4116.1,21.77184102]
[1759116272534,1e-08,4116.2,4116.1,21.77384102]
[1759116280731,1e-08,4116.6,4116.5,2.42924814]
[1759116280946,1e-08,4116.6,4116.5,5.59704814]
[1759116281246,1e-08,4116.6,4116.5,6.29324814]
[1759116281453,1e-08,4116.6,4116.5,20.8906439]
[1759116283547,1e-08,4116.6,4116.5,20.1944439]
[1759116294127,1e-08,4116.6,4116.5,20.8906439]
[1759116295866,1e-08,4116.6,4116.5,20.1944439]
[1759116296365,1e-08,4117.1,4117.0,2.42895312]
[1759116296571,1e-08,4117.1,4117.0,5.49924265]
[1759116296765,1e-08,4117.1,4117.0,7.08395312]
[1759116297167,0.001,4117.5,4117.0,7.08395312]
[1759116297168,0.001,4117.5,4117.4,2.42871715]
[1759116297355,0.001,4117.5,4117.4,20.79100432]
[1759116297556,0.001,4117.5,4117.4,21.46291715]
[1759116297761,0.001,4117.5,4117.4,21.58371715]
[1759116297939,0.001,4117.5,4117.4,21.68108445]
[1759116311727,0.001,4118.4,4118.3,2.42818638]
[1759116311932,0.001,4118.4,4118.3,5.47318638]
[1759116316327,0.001,4118.4,4118.3,5.71808638]
[1759116317120,0.001,4118.4,4118.3,6.15668638]
[1759116317538,0.001,4118.4,4118.3,5.47318638]
[1759116321553,0.001,4118.4,4118.3,5.59398638]
[1759116323148,0.0777,4118.4,4118.3,5.59398638]
[1759116323335,0.001,4118.4,4118.3,5.59398638]
[1759116329246,0.001,4118.4,4118.3,6.27748638]
[1759116332682,0.001,4118.4,4118.3,7.06948638]
[1759116333877,0.001,4118.4,4118.3,6.38598638]
[1759116334782,0.001,4118.4,4118.3,7.06948638]
[1759116337276,0.001,4118.4,4118.3,6.38598638]
[1759116337777,2.42717219,4120.1,4118.3,6.38598638]
[1759116337778,0.001,4119.3,4119.2,3.21965585]
[1759116337978,0.001,4119.3,4119.2,6.9704324]
[1759116338276,0.001,4119.3,4119.2,21.44615585]
[1759116338579,0.001,4119.3,4119.2,22.17612282]
[1759116341559,0.001,4119.3,4119.2,17.65762282]
[1759116341771,0.0777,4119.3,4119.2,20.70062282]
[1759116342159,0.2077,4119.3,4119.2,20.70062282]
[1759116342361,0.0777,4119.3,4119.2,20.70062282]
[1759116343464,0.2077,4119.3,4119.2,20.70062282]
[1759116346196,0.2077,4119.3,4119.2,6.20062282]
[1759116346490,0.2077,4119.3,4118.6,14.5]
[1759116346691,4.81074375,4119.1,4119.0,2.42773977]
[1759116346991,4.81074375,4119.1,4118.6,19.97098356]
[1759116346992,5.01744375,4119.1,4118.6,19.97098356]
[1759116347160,4.81074375,4118.7,4118.6,14.5]
[1759116347382,5.01744375,4118.7,4118.6,14.5]
[1759116350301,8.45252941,4118.7,4118.6,14.5]
[1759116351227,8.45252941,4118.7,4118.4,0.1208]
[1759116351424,3.2067,4118.6,4118.0,0.1228]
[1759116351600,7.81074375,4118.1,4118.0,0.002]
[1759116351992,8.01744375,4118.1,4118.0,0.002]
[1759116353128,8.01744375,4118.1,4118.0,2.43036328]
[1759116353631,8.01744375,4118.1,4118.0,0.002]
[1759116354701,9.13556813,4118.1,4118.0,0.002]
[1759116354915,9.25636813,4118.1,4118.0,0.002]
[1759116357811,9.20636813,4118.1,4118.0,0.002]
[1759116358139,12.24936813,4118.1,4118.0,0.002]
[1759116358323,12.19936813,4118.1,4118.0,0.002]
[1759116358928,14.62767244,4118.1,4118.0,0.002]
[1759116359243,12.19936813,4118.1,4118.0,0.002]
[1759116363043,12.06936813,4118.1,4118.0,0.002]
[1759116363745,3.0,4118.1,4118.0,3.11166328]
[1759116364063,0.0777,4118.9,4118.0,3.11166328]
[1759116364064,3.044,4118.9,4118.0,3.11164945]
[1759116364358,3.044,4118.9,4118.7,2.42794098]
[1759116364557,0.001,4118.9,4118.5,17.27456747]
[1759116364856,3.0,4118.6,4118.5,14.5]
[1759116365656,3.0,4118.6,4118.5,16.92806847]
[1759116366023,3.0,4118.6,4118.5,2.42806847]
[1759116366227,4.81074375,4118.7,4118.2,0.3465]
[1759116366228,3.0,4118.7,4118.6,2.42796546]
[1759116366545,3.001,4118.9,4118.8,2.42789161]
[1759116368463,3.001,4118.9,4118.7,0.6813]
[1759116368659,3.001,4118.9,4118.6,2.42800525]
[1759116368826,3.001,4118.9,4118.6,2.67100525]
[1759116369028,3.001,4118.9,4118.7,14.5]
[1759116369227,3.001,4118.9,4118.7,16.92792016]
[1759116371852,3.001,4118.9,4118.8,2.42789161]
[1759116372467,2.951,4118.9,4118.8,2.42789161]
[1759116372986,2.901,4118.9,4118.8,2.42789161]
[1759116375986,2.901,4118.9,4118.8,3.12869161]
[1759116376788,2.901,4118.9,4118.8,2.65509161]